[Event "Late-Titled-Tuesday-Blitz-September-19-2023"]
[Site "Chess.com"]
[Date "2023.09.19"]
[Round "6"]
[White "IMSlavin"]
[Black "Haykoooo0o"]
[Result "0-1"]
[WhiteElo "2292"]
[BlackElo "2463"]
[TimeControl "180+1"]
[EndTime "15:05:37 PDT"]
[Termination "Haykoooo0o won by resignation"]

1. e4 {[%clk 0:02:58.1]} 1... c6 {[%clk 0:02:39]} 2. d4 {[%clk 0:02:57.3]} 2...
d5 {[%clk 0:02:39.7]} 3. e5 {[%clk 0:02:57.3]} 3... c5 {[%clk 0:02:39.9]} 4. c4
{[%clk 0:02:56.6]} 4... e6 {[%clk 0:02:38.6]} 5. dxc5 {[%clk 0:02:54.8]} 5...
Bxc5 {[%clk 0:02:37.4]} 6. cxd5 {[%clk 0:02:54.5]} 6... exd5 {[%clk 0:02:34.3]}
7. Nc3 {[%clk 0:02:53.6]} 7... Ne7 {[%clk 0:02:34.1]} 8. f4 {[%clk 0:02:50.8]}
8... Nbc6 {[%clk 0:02:32.4]} 9. Nf3 {[%clk 0:02:50.3]} 9... Bg4 {[%clk 0:02:23]}
10. Bd3 {[%clk 0:02:44.7]} 10... Qd7 {[%clk 0:01:56.8]} 11. h3 {[%clk
0:02:41.2]} 11... Bf5 {[%clk 0:01:54.3]} 12. a3 {[%clk 0:02:27.6]} 12... Bxd3
{[%clk 0:01:50.1]} 13. Qxd3 {[%clk 0:02:26.7]} 13... O-O-O {[%clk 0:01:49.8]}
14. Bd2 {[%clk 0:02:07.2]} 14... Kb8 {[%clk 0:01:45.7]} 15. O-O-O {[%clk
0:02:03.3]} 15... Qf5 {[%clk 0:01:33.6]} 16. Qxf5 {[%clk 0:01:55.3]} 16... Nxf5
{[%clk 0:01:33]} 17. g4 {[%clk 0:01:52.1]} 17... Ne3 {[%clk 0:00:54.9]} 18. Rde1
{[%clk 0:01:50.7]} 18... Nc4 {[%clk 0:00:54.6]} 19. Ng5 {[%clk 0:01:42]} 19...
Nd4 {[%clk 0:00:45.7]} 20. Nxf7 {[%clk 0:01:14.8]} 20... Nb3+ {[%clk 0:00:35.9]}
21. Kc2 {[%clk 0:01:13.7]} 21... Nbxd2 {[%clk 0:00:32.9]} 22. Nxh8 {[%clk
0:01:11.2]} 22... Nf3 {[%clk 0:00:27.6]} 23. Re2 {[%clk 0:00:43.3]} 23... Nd4+
{[%clk 0:00:24.7]} 24. Kd3 {[%clk 0:00:42.8]} 24... Nxe2 {[%clk 0:00:23.2]} 25.
Kxe2 {[%clk 0:00:42]} 25... Rxh8 {[%clk 0:00:20.6]} 26. Nxd5 {[%clk 0:00:41.5]}
26... Rd8 {[%clk 0:00:21.3]} 27. b4 {[%clk 0:00:28.2]} 27... Rxd5 {[%clk
0:00:20.3]} 28. bxc5 {[%clk 0:00:27.7]} 28... Nxe5 {[%clk 0:00:18.1]} 29. fxe5
{[%clk 0:00:24]} 29... Rxe5+ {[%clk 0:00:18.6]} 30. Kf3 {[%clk 0:00:18.8]} 30...
Rxc5 {[%clk 0:00:19]} 31. Ra1 {[%clk 0:00:17.1]} 31... Rc3+ {[%clk 0:00:18.2]}
32. Kf4 {[%clk 0:00:17.6]} 32... Rxh3 {[%clk 0:00:17.3]} 33. a4 {[%clk
0:00:17.9]} 33... Kc7 {[%clk 0:00:15.7]} 34. Re1 {[%clk 0:00:16.7]} 34... Rd3
{[%clk 0:00:13.3]} 35. g5 {[%clk 0:00:12.3]} 35... Rd7 {[%clk 0:00:12.2]} 36.
Kf5 {[%clk 0:00:11.9]} 36... Kb6 {[%clk 0:00:11.2]} 37. Re6+ {[%clk 0:00:11.5]}
37... Ka5 {[%clk 0:00:10.7]} 38. Re4 {[%clk 0:00:11.5]} 38... b6 {[%clk
0:00:09.7]} 39. Ke6 {[%clk 0:00:11.4]} 39... Rc7 {[%clk 0:00:09.9]} 40. Rf4
{[%clk 0:00:10.6]} 40... a6 {[%clk 0:00:09.9]} 41. Rh4 {[%clk 0:00:09.8]} 41...
g6 {[%clk 0:00:08.8]} 42. Kd6 {[%clk 0:00:09.6]} 42... Rc5 {[%clk 0:00:08.6]}
43. Rxh7 {[%clk 0:00:07]} 43... Rxg5 {[%clk 0:00:08.6]} 44. Rb7 {[%clk
0:00:05.5]} 44... Rg1 {[%clk 0:00:07.9]} 45. Ke5 {[%clk 0:00:04]} 45... g5
{[%clk 0:00:08]} 46. Kf5 {[%clk 0:00:04.5]} 46... g4 {[%clk 0:00:08.5]} 47. Kf4
{[%clk 0:00:04.8]} 47... Ra1 {[%clk 0:00:08.3]} 48. Kxg4 {[%clk 0:00:04.5]}
48... Rxa4+ {[%clk 0:00:08.9]} 49. Kf3 {[%clk 0:00:05.3]} 49... Rd4 {[%clk
0:00:09]} 50. Ke3 {[%clk 0:00:05.9]} 50... Rd8 {[%clk 0:00:09.6]} 51. Ke4 {[%clk
0:00:05]} 51... b5 {[%clk 0:00:10.1]} 52. Ke5 {[%clk 0:00:05.9]} 52... Kb4
{[%clk 0:00:10.3]} 53. Ke6 {[%clk 0:00:06.8]} 53... Rd3 {[%clk 0:00:10.3]} 54.
Ra7 {[%clk 0:00:07.5]} 54... a5 {[%clk 0:00:10.7]} 55. Rc7 {[%clk 0:00:07.1]}
55... a4 {[%clk 0:00:10.9]} 56. Ke5 {[%clk 0:00:08]} 56... Rd8 {[%clk
0:00:10.6]} 57. Ke6 {[%clk 0:00:08.2]} 57... Kb3 {[%clk 0:00:10.8]} 58. Ke7
{[%clk 0:00:09.1]} 58... Rd1 {[%clk 0:00:10.9]} 59. Rc5 {[%clk 0:00:09.8]} 59...
b4 {[%clk 0:00:11.3]} 60. Rd5 {[%clk 0:00:10.2]} 60... Rxd5 {[%clk 0:00:10.3]}
61. Ke6 {[%clk 0:00:10.4]} 61... Rd2 {[%clk 0:00:10.2]} 0-1

[Event "Late-Titled-Tuesday-Blitz-September-19-2023"]
[Site "Chess.com"]
[Date "2023.09.19"]
[Round "6"]
[White "VitaliyBernadskiy"]
[Black "Thjop"]
[Result "1-0"]
[WhiteElo "2855"]
[BlackElo "2621"]
[TimeControl "180+1"]
[EndTime "15:05:38 PDT"]
[Termination "VitaliyBernadskiy won on time"]

1. e4 {[%clk 0:03:00.9]} 1... e6 {[%clk 0:02:59.5]} 2. Nf3 {[%clk 0:03:00.2]}
2... d5 {[%clk 0:02:59.5]} 3. e5 {[%clk 0:03:00.8]} 3... c5 {[%clk 0:02:59.5]}
4. b4 {[%clk 0:03:01.5]} 4... cxb4 {[%clk 0:03:00]} 5. a3 {[%clk 0:03:02.2]}
5... bxa3 {[%clk 0:02:59.9]} 6. d4 {[%clk 0:03:02.9]} 6... Nc6 {[%clk
0:02:59.3]} 7. c3 {[%clk 0:03:03.4]} 7... Bd7 {[%clk 0:02:59.2]} 8. Bd3 {[%clk
0:03:03.5]} 8... a6 {[%clk 0:02:59.5]} 9. O-O {[%clk 0:03:03.5]} 9... Rc8 {[%clk
0:02:59.4]} 10. Re1 {[%clk 0:02:58]} 10... h6 {[%clk 0:02:56]} 11. Bxa3 {[%clk
0:02:56.5]} 11... Bxa3 {[%clk 0:02:55.4]} 12. Nxa3 {[%clk 0:02:56.8]} 12... Nge7
{[%clk 0:02:55.8]} 13. Nc2 {[%clk 0:02:42.2]} 13... Na5 {[%clk 0:02:53.5]} 14.
Ra3 {[%clk 0:02:33.2]} 14... Nc4 {[%clk 0:02:49.8]} 15. Bxc4 {[%clk 0:02:25.8]}
15... dxc4 {[%clk 0:02:35.6]} 16. Nd2 {[%clk 0:02:25.6]} 16... O-O {[%clk
0:02:29.4]} 17. Ne4 {[%clk 0:02:24.9]} 17... Bc6 {[%clk 0:02:22.8]} 18. Nd6
{[%clk 0:02:24.7]} 18... Rc7 {[%clk 0:02:23.1]} 19. Ne3 {[%clk 0:02:21.8]} 19...
Nc8 {[%clk 0:01:55.7]} 20. Nexc4 {[%clk 0:02:21.4]} 20... Bd5 {[%clk 0:01:54.5]}
21. Nxc8 {[%clk 0:02:18.7]} 21... Qxc8 {[%clk 0:01:53.5]} 22. Nd6 {[%clk
0:02:15]} 22... Qd7 {[%clk 0:01:53.4]} 23. Qd3 {[%clk 0:02:12.8]} 23... Qc6
{[%clk 0:01:47.5]} 24. Qg3 {[%clk 0:02:04.3]} 24... b5 {[%clk 0:01:39.7]} 25. h4
{[%clk 0:01:59.3]} 25... Ra8 {[%clk 0:01:37.8]} 26. Rb1 {[%clk 0:01:59.4]} 26...
Rb8 {[%clk 0:01:17.7]} 27. Kh2 {[%clk 0:01:53.6]} 27... Qb6 {[%clk 0:01:06.6]}
28. Qf4 {[%clk 0:01:49.2]} 28... Qc6 {[%clk 0:01:01.6]} 29. h5 {[%clk
0:01:42.4]} 29... Rb6 {[%clk 0:00:54]} 30. Re1 {[%clk 0:01:33.7]} 30... Qd7
{[%clk 0:00:52.3]} 31. Re3 {[%clk 0:01:33]} 31... Qe7 {[%clk 0:00:47.6]} 32. Rg3
{[%clk 0:01:32.1]} 32... Kh8 {[%clk 0:00:38.7]} 33. Ra1 {[%clk 0:01:24.5]} 33...
Rbc6 {[%clk 0:00:30.9]} 34. Qd2 {[%clk 0:01:24.7]} 34... Rxd6 {[%clk 0:00:26.9]}
35. exd6 {[%clk 0:01:23.9]} 35... Qxd6 {[%clk 0:00:27.8]} 36. Kg1 {[%clk
0:01:18.1]} 36... Ra7 {[%clk 0:00:23.4]} 37. Qb2 {[%clk 0:01:17.1]} 37... Bc4
{[%clk 0:00:22.5]} 38. Ra5 {[%clk 0:01:12.2]} 38... Rc7 {[%clk 0:00:20.6]} 39.
Re3 {[%clk 0:01:09.6]} 39... Rc6 {[%clk 0:00:20.9]} 40. Ra1 {[%clk 0:01:08.1]}
40... Bd5 {[%clk 0:00:20.9]} 41. Qa3 {[%clk 0:01:01.2]} 41... Qb8 {[%clk
0:00:18.1]} 42. Qe7 {[%clk 0:00:58.5]} 42... Kg8 {[%clk 0:00:18]} 43. Rg3 {[%clk
0:00:56.9]} 43... Qf8 {[%clk 0:00:16.2]} 44. Qf6 {[%clk 0:00:51.5]} 44... Kh8
{[%clk 0:00:15]} 45. Qe5 {[%clk 0:00:51.7]} 45... f6 {[%clk 0:00:13.9]} 46. Qe3
{[%clk 0:00:51.2]} 46... Qf7 {[%clk 0:00:14.1]} 47. Rg6 {[%clk 0:00:50.2]} 47...
Qc7 {[%clk 0:00:11.6]} 48. Rg3 {[%clk 0:00:49.1]} 48... Qf7 {[%clk 0:00:11]} 49.
Rh3 {[%clk 0:00:49.1]} 49... Qc7 {[%clk 0:00:11.1]} 50. Qd3 {[%clk 0:00:34.5]}
50... Bc4 {[%clk 0:00:11.1]} 51. Qg6 {[%clk 0:00:34.5]} 51... Bd5 {[%clk
0:00:11.5]} 52. Rg3 {[%clk 0:00:31]} 52... Qe7 {[%clk 0:00:10.4]} 53. Re1 {[%clk
0:00:29.1]} 53... Rc7 {[%clk 0:00:06.9]} 54. Qd3 {[%clk 0:00:25]} 54... Qf7
{[%clk 0:00:06.9]} 55. Rg6 {[%clk 0:00:24.1]} 55... Bc4 {[%clk 0:00:06.3]} 56.
Qg3 {[%clk 0:00:24]} 56... Bd5 {[%clk 0:00:05.4]} 57. Qd6 {[%clk 0:00:21.8]}
57... Rc6 {[%clk 0:00:04]} 58. Qb4 {[%clk 0:00:20.4]} 58... Kg8 {[%clk
0:00:03.4]} 59. Re3 {[%clk 0:00:20.2]} 59... Qf8 {[%clk 0:00:03.2]} 60. Reg3
{[%clk 0:00:18.6]} 60... Rc7 {[%clk 0:00:01.2]} 61. Qa5 {[%clk 0:00:17.9]} 61...
Qd6 {[%clk 0:00:01.4]} 62. Rxh6 {[%clk 0:00:15.6]} 62... Rd7 {[%clk 0:00:01]}
63. Rhg6 {[%clk 0:00:15.8]} 63... Qc6 {[%clk 0:00:01.6]} 64. h6 {[%clk
0:00:15.2]} 64... Be4 {[%clk 0:00:02.1]} 65. Rxg7+ {[%clk 0:00:15.5]} 65... Rxg7
{[%clk 0:00:02.5]} 66. Rxg7+ {[%clk 0:00:16.1]} 66... Kh8 {[%clk 0:00:02.9]} 67.
Qd8+ {[%clk 0:00:16.4]} 1-0

[Event "Late-Titled-Tuesday-Blitz-September-19-2023"]
[Site "Chess.com"]
[Date "2023.09.19"]
[Round "6"]
[White "WPWPWP-2015"]
[Black "Rodalquilar"]
[Result "1-0"]
[WhiteElo "2552"]
[BlackElo "2740"]
[TimeControl "180+1"]
[EndTime "15:05:39 PDT"]
[Termination "WPWPWP-2015 won on time"]

1. e4 {[%clk 0:03:00.9]} 1... d5 {[%clk 0:03:00.2]} 2. exd5 {[%clk 0:02:58]}
2... Qxd5 {[%clk 0:03:01.1]} 3. Nc3 {[%clk 0:02:58.2]} 3... Qa5 {[%clk
0:03:01.2]} 4. Rb1 {[%clk 0:02:58]} 4... c6 {[%clk 0:02:50]} 5. b4 {[%clk
0:02:56.1]} 5... Qc7 {[%clk 0:02:50.3]} 6. Nf3 {[%clk 0:02:55.5]} 6... Nf6
{[%clk 0:02:50]} 7. g3 {[%clk 0:02:53.9]} 7... e5 {[%clk 0:02:49]} 8. d3 {[%clk
0:02:52.6]} 8... Bd6 {[%clk 0:02:49.1]} 9. Bg2 {[%clk 0:02:51.3]} 9... O-O
{[%clk 0:02:49]} 10. O-O {[%clk 0:02:51.3]} 10... h6 {[%clk 0:02:47.6]} 11. Re1
{[%clk 0:02:47.3]} 11... Bf5 {[%clk 0:02:41.8]} 12. a3 {[%clk 0:02:42.3]} 12...
Re8 {[%clk 0:02:40.2]} 13. Ne4 {[%clk 0:02:41]} 13... Nxe4 {[%clk 0:02:35.5]}
14. dxe4 {[%clk 0:02:40.8]} 14... Be6 {[%clk 0:02:35.7]} 15. Nd2 {[%clk
0:02:36]} 15... Nd7 {[%clk 0:02:28.9]} 16. c4 {[%clk 0:02:26.7]} 16... Rad8
{[%clk 0:02:29]} 17. Qc2 {[%clk 0:02:23.9]} 17... a5 {[%clk 0:02:16.6]} 18. c5
{[%clk 0:02:22.8]} 18... Bf8 {[%clk 0:02:16.4]} 19. Nc4 {[%clk 0:02:21.3]} 19...
axb4 {[%clk 0:02:15.9]} 20. axb4 {[%clk 0:02:21]} 20... Ra8 {[%clk 0:01:19.9]}
21. Be3 {[%clk 0:02:15.4]} 21... f6 {[%clk 0:01:17]} 22. Bf1 {[%clk 0:02:12]}
22... Be7 {[%clk 0:01:15]} 23. Red1 {[%clk 0:02:11.6]} 23... Nf8 {[%clk
0:01:14.6]} 24. Nd6 {[%clk 0:02:06.5]} 24... Red8 {[%clk 0:01:13.6]} 25. Nc4
{[%clk 0:01:46.6]} 25... Bf7 {[%clk 0:01:08.1]} 26. Be2 {[%clk 0:01:41.6]} 26...
Ne6 {[%clk 0:01:06.2]} 27. Nb6 {[%clk 0:01:30.3]} 27... Rxd1+ {[%clk 0:01:05.4]}
28. Rxd1 {[%clk 0:01:27.1]} 28... Rd8 {[%clk 0:01:05.8]} 29. Bc4 {[%clk
0:01:14.8]} 29... Nd4 {[%clk 0:00:22.7]} 30. Bxd4 {[%clk 0:01:06]} 30... exd4
{[%clk 0:00:22.3]} 31. Bxf7+ {[%clk 0:01:04.1]} 31... Kxf7 {[%clk 0:00:22.7]}
32. Qc4+ {[%clk 0:01:03.7]} 32... Kg6 {[%clk 0:00:18.1]} 33. Rxd4 {[%clk
0:01:01.5]} 33... Re8 {[%clk 0:00:17.7]} 34. Qe6 {[%clk 0:00:53.8]} 34... Qe5
{[%clk 0:00:14.8]} 35. Qxe5 {[%clk 0:00:53.6]} 35... fxe5 {[%clk 0:00:15.3]} 36.
Rd7 {[%clk 0:00:53.2]} 36... Bg5 {[%clk 0:00:13.7]} 37. Rxb7 {[%clk 0:00:48.3]}
37... Bd2 {[%clk 0:00:14]} 38. Nc4 {[%clk 0:00:48.6]} 38... Bc3 {[%clk
0:00:13.7]} 39. Rb6 {[%clk 0:00:39.8]} 39... Kh5 {[%clk 0:00:12.2]} 40. Kg2
{[%clk 0:00:37.4]} 40... Rf8 {[%clk 0:00:12.2]} 41. f3 {[%clk 0:00:33.3]} 41...
Ra8 {[%clk 0:00:10.2]} 42. Rxc6 {[%clk 0:00:30.9]} 42... Bxb4 {[%clk 0:00:10.1]}
43. Nxe5 {[%clk 0:00:30.4]} 43... Ra2+ {[%clk 0:00:08]} 44. Kh3 {[%clk
0:00:30.1]} 44... Bc3 {[%clk 0:00:02.1]} 45. Nd3 {[%clk 0:00:19.7]} 45... Bd2
{[%clk 0:00:02.6]} 46. Rd6 {[%clk 0:00:14.9]} 46... Be3 {[%clk 0:00:02.7]} 47.
c6 {[%clk 0:00:10.8]} 47... Rc2 {[%clk 0:00:03]} 48. Nf4+ {[%clk 0:00:09.6]}
48... Bxf4 {[%clk 0:00:02.6]} 49. gxf4 {[%clk 0:00:10]} 49... Rc3 {[%clk
0:00:03.2]} 50. Kg3 {[%clk 0:00:10.2]} 50... g6 {[%clk 0:00:03.2]} 51. h3 {[%clk
0:00:09.6]} 51... g5 {[%clk 0:00:03.5]} 52. fxg5 {[%clk 0:00:09]} 52... hxg5
{[%clk 0:00:04.4]} 53. Rd5 {[%clk 0:00:09.1]} 53... Rxc6 {[%clk 0:00:04.1]} 54.
h4 {[%clk 0:00:08.9]} 54... Kg6 {[%clk 0:00:04.3]} 55. Rxg5+ {[%clk 0:00:08.3]}
55... Kh6 {[%clk 0:00:05.2]} 56. Rg4 {[%clk 0:00:08.2]} 56... Rc1 {[%clk
0:00:05.5]} 57. Rg5 {[%clk 0:00:08.3]} 57... Rg1+ {[%clk 0:00:05.7]} 58. Kf4
{[%clk 0:00:08.7]} 58... Rh1 {[%clk 0:00:06.6]} 59. Rg4 {[%clk 0:00:07.8]} 59...
Kh5 {[%clk 0:00:06.9]} 60. Rg8 {[%clk 0:00:07.3]} 60... Rxh4+ {[%clk 0:00:06.5]}
61. Kf5 {[%clk 0:00:07.8]} 61... Kh6 {[%clk 0:00:03]} 62. Rh8+ {[%clk
0:00:07.7]} 62... Kg7 {[%clk 0:00:03.9]} 63. Rxh4 {[%clk 0:00:07.9]} 1-0

[Event "Late-Titled-Tuesday-Blitz-September-19-2023"]
[Site "Chess.com"]
[Date "2023.09.19"]
[Round "6"]
[White "victormago"]
[Black "SaqoChess_Twitch"]
[Result "0-1"]
[WhiteElo "2524"]
[BlackElo "2670"]
[TimeControl "180+1"]
[EndTime "15:05:40 PDT"]
[Termination "SaqoChess_Twitch won by checkmate"]

1. d4 {[%clk 0:03:00.9]} 1... d5 {[%clk 0:03:00]} 2. c4 {[%clk 0:03:00.3]} 2...
e6 {[%clk 0:03:00.6]} 3. Nc3 {[%clk 0:03:00.1]} 3... a6 {[%clk 0:03:00.9]} 4.
cxd5 {[%clk 0:02:54.9]} 4... exd5 {[%clk 0:03:01.8]} 5. Nf3 {[%clk 0:02:51.2]}
5... h6 {[%clk 0:03:02.1]} 6. h3 {[%clk 0:02:50]} 6... Nf6 {[%clk 0:03:01.4]} 7.
Bf4 {[%clk 0:02:50.3]} 7... Bd6 {[%clk 0:03:00.3]} 8. Bxd6 {[%clk 0:02:49.3]}
8... Qxd6 {[%clk 0:03:00.4]} 9. e3 {[%clk 0:02:50]} 9... O-O {[%clk 0:03:00.9]}
10. Bd3 {[%clk 0:02:49.9]} 10... Nc6 {[%clk 0:03:01.6]} 11. O-O {[%clk
0:02:49.7]} 11... Ne7 {[%clk 0:03:02.3]} 12. Rc1 {[%clk 0:02:47.9]} 12... Bf5
{[%clk 0:03:01.7]} 13. Ne5 {[%clk 0:02:45.1]} 13... c5 {[%clk 0:02:57.1]} 14.
Bxf5 {[%clk 0:02:35.9]} 14... Nxf5 {[%clk 0:02:56.9]} 15. Nf3 {[%clk 0:02:27.3]}
15... cxd4 {[%clk 0:02:56.7]} 16. Nxd4 {[%clk 0:02:26.9]} 16... Nxd4 {[%clk
0:02:55.6]} 17. Qxd4 {[%clk 0:02:26.5]} 17... Rfd8 {[%clk 0:02:54.6]} 18. Rfd1
{[%clk 0:02:26.5]} 18... Rac8 {[%clk 0:02:54.1]} 19. Rc2 {[%clk 0:01:54.3]}
19... Rc4 {[%clk 0:02:49.4]} 20. Qd3 {[%clk 0:01:48.2]} 20... Qc6 {[%clk
0:02:46.5]} 21. Rcd2 {[%clk 0:01:44.8]} 21... d4 {[%clk 0:02:38.4]} 22. exd4
{[%clk 0:01:21.6]} 22... Rdxd4 {[%clk 0:02:38.2]} 23. Qxd4 {[%clk 0:01:21.8]}
23... Rxd4 {[%clk 0:02:39.1]} 24. Rxd4 {[%clk 0:01:22.2]} 24... b5 {[%clk
0:02:32]} 25. a3 {[%clk 0:01:22.1]} 25... a5 {[%clk 0:02:29.8]} 26. R1d2 {[%clk
0:01:16.4]} 26... g6 {[%clk 0:02:27.1]} 27. Rd6 {[%clk 0:01:15.7]} 27... Qc4
{[%clk 0:02:07.4]} 28. Rxf6 {[%clk 0:01:14.1]} 28... b4 {[%clk 0:02:08]} 29.
axb4 {[%clk 0:01:09.6]} 29... axb4 {[%clk 0:02:08.9]} 30. Rf3 {[%clk 0:01:00.4]}
30... bxc3 {[%clk 0:02:08.2]} 31. Rxc3 {[%clk 0:01:00.1]} 31... Qa2 {[%clk
0:02:07.2]} 32. Rcd3 {[%clk 0:00:59]} 32... Kg7 {[%clk 0:02:05.9]} 33. g3 {[%clk
0:00:58.9]} 33... h5 {[%clk 0:02:05.8]} 34. h4 {[%clk 0:00:57.3]} 34... Qa1+
{[%clk 0:02:04.6]} 35. Kh2 {[%clk 0:00:56.4]} 35... Qb1 {[%clk 0:02:05.1]} 36.
Rf3 {[%clk 0:00:50.2]} 36... f5 {[%clk 0:01:53.4]} 37. Re3 {[%clk 0:00:41.4]}
37... Qf1 {[%clk 0:01:43.3]} 38. Ree2 {[%clk 0:00:36.2]} 38... Qc1 {[%clk
0:01:42.2]} 39. Rc2 {[%clk 0:00:34.4]} 39... Qb1 {[%clk 0:01:40.6]} 40. Kg2
{[%clk 0:00:34.2]} 40... Qd1 {[%clk 0:01:36.8]} 41. b4 {[%clk 0:00:31.3]} 41...
f4 {[%clk 0:01:33.5]} 42. gxf4 {[%clk 0:00:24.6]} 42... Qd4 {[%clk 0:01:33.6]}
43. Rb2 {[%clk 0:00:19.9]} 43... Qxf4 {[%clk 0:01:32.4]} 44. f3 {[%clk
0:00:20.4]} 44... Qxh4 {[%clk 0:01:32.2]} 45. b5 {[%clk 0:00:20.7]} 45... Qg5+
{[%clk 0:01:31.9]} 46. Kf2 {[%clk 0:00:21.3]} 46... Qc5+ {[%clk 0:01:31.8]} 47.
Ke1 {[%clk 0:00:21]} 47... Qb6 {[%clk 0:01:31.4]} 48. Kf1 {[%clk 0:00:20]} 48...
Kh6 {[%clk 0:01:29.1]} 49. Kg2 {[%clk 0:00:19.8]} 49... h4 {[%clk 0:01:27.8]}
50. Re4 {[%clk 0:00:19.5]} 50... g5 {[%clk 0:01:26.2]} 51. Rg4 {[%clk
0:00:18.8]} 51... Kh5 {[%clk 0:01:26.4]} 52. Re4 {[%clk 0:00:17.8]} 52... Qf6
{[%clk 0:01:21.9]} 53. Ree2 {[%clk 0:00:15.6]} 53... h3+ {[%clk 0:01:18.8]} 54.
Kxh3 {[%clk 0:00:15]} 54... Qxf3+ {[%clk 0:01:19.1]} 55. Kh2 {[%clk 0:00:15.3]}
55... Qf4+ {[%clk 0:01:16.2]} 56. Kg2 {[%clk 0:00:15.2]} 56... Qg4+ {[%clk
0:01:16.3]} 57. Kf2 {[%clk 0:00:15.8]} 57... Qf5+ {[%clk 0:01:16.5]} 58. Kg2
{[%clk 0:00:16.1]} 58... Qg4+ {[%clk 0:01:11.7]} 59. Kf2 {[%clk 0:00:16.2]}
59... Qd4+ {[%clk 0:01:03.2]} 60. Kg2 {[%clk 0:00:16.3]} 60... Qb6 {[%clk
0:01:04.1]} 61. Rf2 {[%clk 0:00:15.3]} 61... Kh4 {[%clk 0:01:03.4]} 62. Rb4+
{[%clk 0:00:14.6]} 62... Kh5 {[%clk 0:00:58.3]} 63. Rbb2 {[%clk 0:00:14.7]}
63... g4 {[%clk 0:00:58]} 64. Rfe2 {[%clk 0:00:11]} 64... Kh4 {[%clk 0:00:57.5]}
65. Kh1 {[%clk 0:00:08.7]} 65... g3 {[%clk 0:00:55.5]} 66. Kg2 {[%clk
0:00:07.2]} 66... Qb7+ {[%clk 0:00:54.5]} 67. Kg1 {[%clk 0:00:07.4]} 67... Qb6+
{[%clk 0:00:53.6]} 68. Kg2 {[%clk 0:00:07.5]} 68... Qb7+ {[%clk 0:00:52.3]} 69.
Kg1 {[%clk 0:00:07.8]} 69... Kh3 {[%clk 0:00:52.6]} 70. Red2 {[%clk 0:00:06.8]}
70... Qe4 {[%clk 0:00:48.5]} 71. Re2 {[%clk 0:00:06]} 71... Qd4+ {[%clk
0:00:47.9]} 72. Kf1 {[%clk 0:00:05.4]} 72... Qd1+ {[%clk 0:00:40.8]} 73. Re1
{[%clk 0:00:05.8]} 73... Qf3+ {[%clk 0:00:39.4]} 74. Kg1 {[%clk 0:00:05.8]}
74... Qc3 {[%clk 0:00:39.5]} 75. Rbe2 {[%clk 0:00:04.2]} 75... Qc5+ {[%clk
0:00:38.8]} 76. Kh1 {[%clk 0:00:03]} 76... Qxb5 {[%clk 0:00:37.9]} 77. Kg1
{[%clk 0:00:03.4]} 77... Qd5 {[%clk 0:00:35.6]} 78. Re5 {[%clk 0:00:02.7]} 78...
Qg2# {[%clk 0:00:35.9]} 0-1